fUSD/lending_fUSD_20260128
["ID","MTS","AMOUNT","RATE_DAILY","PERIOD"]
[403842117,1769587846212,-500.0,0.00024,2]
[403842118,1769587846222,-1000.0,0.00024008,2]
[403842119,1769587846231,-1000.0,0.0002401,2]
[403842120,1769587846241,-5901.30840243,0.00024013,2]
[403842121,1769587846251,-200.0,0.00024013,2]
[403842122,1769587846260,-350.0,0.00024068,2]
[403842123,1769587846270,-1000.0,0.00024084,2]
[403842124,1769587846280,-1000.0,0.00024098,2]
[403842125,1769587846289,-1000.0,0.00024164,2]
[403842126,1769587846299,-2633.37011008,0.00024164,2]
[403842127,1769587846308,-1000.0,0.00024194,2]
[403842128,1769587846318,-500.0,0.000242,2]
[403842129,1769587846328,-1000.0,0.00024203,2]
[403842130,1769587846338,-343.34729902,0.00024209,2]
[403842131,1769587846347,-150.0,0.00024211,2]
[403842132,1769587846357,-1000.0,0.00024212,2]
[403842134,1769587846367,-1000.0,0.00024236,2]
[403842136,1769587846376,-387.0,0.00024241,2]
[403842137,1769587846387,-150.0,0.00024255,2]
[403842138,1769587846397,-1000.0,0.00024259,2]
[403842139,1769587846407,-281.98695942,0.00024274,2]
[403842140,1769587846416,-1010.53040663,0.00024278,2]
[403842141,1769587846427,-152.0,0.00024289,8]
[403842142,1769587846437,-1000.0,0.00024289,2]
[403842143,1769587846446,-150.0,0.00024304,2]
[403842144,1769587846456,-615.0,0.00024324,2]
[403842145,1769587846466,-1333.0,0.00024324,2]
[403842146,1769587846476,-916.0,0.00024324,2]
[403842147,1769587846485,-1204.0,0.00024324,2]
[403842148,1769587846495,-2443.0,0.00024324,2]
[403842149,1769587846505,-4832.0,0.00024324,2]
[403842150,1769587846516,-6572.0,0.00024324,2]
[403842151,1769587846526,-1000.0,0.00024333,2]
[403842152,1769587846536,-1000.0,0.00024358,2]
[403842153,1769587846545,-1000.0,0.00024372,2]
[403842154,1769587846555,-150.0,0.00024386,2]
[403842155,1769587846564,-1000.0,0.0002439,2]
[403842156,1769587846573,-500.0,0.000244,2]
[403842157,1769587846583,-150.0,0.00024454,2]
[403842158,1769587846592,-1000.0,0.00024457,2]
[403842159,1769587846601,-150.0,0.00024468,2]
[403842160,1769587846611,-1000.0,0.00024484,2]
[403842161,1769587846620,-1000.0,0.00024507,2]
[403842162,1769587846629,-150.0,0.0002451,2]
[403842163,1769587846639,-2000.0,0.0002453,2]
[403842164,1769587846648,-2000.0,0.0002453,2]
[403842165,1769587846658,-2000.0,0.0002453,2]
[403842166,1769587846668,-1000.0,0.00024543,2]
[403842167,1769587846678,-150.0,0.00024548,2]
[403842168,1769587846687,-200.0,0.00024574,2]
[403842169,1769587846697,-1000.0,0.00024597,2]
[403842170,1769587846706,-200.0,0.00024609,2]
[403842171,1769587846715,-150.0,0.0002461,2]
[403842172,1769587846725,-387.0,0.00024612,2]
[403842173,1769587846734,-450.0,0.00024616,2]
[403842174,1769587846744,-1000.0,0.0002462,2]
[403842175,1769587846753,-1000.0,0.00024636,2]
[403842176,1769587846763,-150.0,0.00024651,2]
[403842177,1769587846773,-150.0,0.00024658,2]
[403842178,1769587846783,-1000.0,0.00024752,2]
[403842179,1769587846792,-429.0,0.00024755,2]
[403842180,1769587846801,-2000.0,0.00024773,2]
[403842181,1769587846811,-2000.0,0.00024773,2]
[403842182,1769587846821,-2000.0,0.00024773,2]
[403842183,1769587846831,-150.0,0.00024792,2]
[403842184,1769587846840,-150.00289551,0.00024797,25]
[403842185,1769587846850,-199348.03361526,0.000248,3]
[403842186,1769587847880,-374.10410906,0.000248,3]
[403842187,1769587847891,-497.12974831,0.000248,3]
[403842188,1769587847903,-409.02962495,0.000248,3]
[403842189,1769587847972,-840.8243908,0.000248,3]
[403842190,1769587847983,-1471.15000445,0.000248,3]
[403842191,1769587848699,6247.48947771,0.00014364,2]
[403842192,1769587848819,-151.0,0.00015707,2]
[403842193,1769587848829,-151.0,0.00015707,2]
[403842194,1769587848838,-5942.00000002,0.000248,3]
[403842195,1769587848873,-3630.29054315,0.000248,3]
[403842196,1769587848883,-556.46974885,0.000248,10]
[403842197,1769587848892,-150.0,0.00024873,2]
[403842198,1769587848901,-11310.66,0.00024883,2]
[403842199,1769587848910,-222.65126198,0.000249,3]
[403842200,1769587848920,-166.11,0.00024963,2]
[403842201,1769587848929,-151.0,0.00025,2]
[403842202,1769587848939,-151.6,0.00025,2]
[403842203,1769587848948,-250.0,0.00025,17]
[403842204,1769587848958,-837.97,0.00025,7]
[403842205,1769587848972,-152.0,0.00025083,9]
[403842206,1769587848982,-713.45380711,0.00025098,50]
[403842207,1769587848991,-256.67387508,0.00025114,2]
[403842208,1769587849001,-977.81,0.00025143,2]
[403842209,1769587849011,-200.0,0.00025159,2]
[403842210,1769587849020,-550.0,0.00025164,2]
[403842211,1769587849029,-200.0,0.00025189,2]
[403842212,1769587849038,-500.0,0.00025348,7]
[403842213,1769587849048,-500.0,0.00025348,7]
[403842214,1769587849057,-500.0,0.00025348,7]
[403842215,1769587849071,-713.45380711,0.00025414,54]
[403842216,1769587849083,-250.0,0.00025421,2]
[403842217,1769587849092,-166276.5124646,0.00025526,2]
[403842218,1769587849101,-637.385223,0.00025526,7]
[403842219,1769587849110,-637.385223,0.00025526,7]
[403842220,1769587849121,-637.385223,0.00025526,7]
[403842221,1769587849131,-637.385223,0.00025526,7]
[403842222,1769587849140,-519.705503,0.00025526,7]
[403842223,1769587849150,-519.705503,0.00025526,7]
[403842224,1769587849160,-519.705503,0.00025526,7]
[403842225,1769587849170,-519.705503,0.00025526,7]
[403842226,1769587849179,-208.614424,0.00025526,7]
[403842227,1769587849189,-208.614424,0.00025526,7]
[403842228,1769587849199,-208.614424,0.00025526,7]
[403842229,1769587849209,-208.614424,0.00025526,7]
[403842230,1769587849218,-237.81793568,0.00025569,56]
[403842231,1769587849228,-1307.5999021,0.00025705,2]
[403842232,1769587849237,-200.63438238,0.00025712,2]
[403842233,1769587849247,-713.45380711,0.00025729,57]
[403842234,1769587849256,-151.0,0.000258,2]
[403842235,1769587849266,-200.0,0.00025841,2]
[403842236,1769587849275,-152.0,0.00025876,10]
[403842237,1769587849284,-350.0,0.00025968,2]
[403842238,1769587849294,-200.0,0.0002603,2]
[403842239,1769587849303,-713.45380711,0.00026044,61]
[403842240,1769587849313,-501.0,0.00026087,9]
[403842241,1769587849323,-602.82,0.00026137,2]
[403842242,1769587849333,-1232.28,0.00026137,2]
[403842243,1769587849342,-150.00289551,0.0002617,29]
[403842244,1769587849352,-201.84147665,0.00026353,2]
[403842245,1769587849362,-713.45380711,0.0002636,65]
[403842246,1769587849372,-291.7649755,0.00026372,2]
[403842247,1769587849382,-513.23644864,0.00026486,2]
[403842248,1769587849393,-453.21453989,0.00026516,2]
[403842249,1769587849402,-200.0,0.00026622,2]
[403842250,1769587849412,-152.0,0.0002667,11]
[403842251,1769587849421,-713.45380711,0.00026675,69]
[403842252,1769587849431,-4268.36258006,0.00026773,2]
[403842253,1769587849440,-200.0,0.00026895,2]
[403842254,1769587849449,-713.45380711,0.0002699,72]
[403842255,1769587849458,-200.0,0.00027,120]
[403842256,1769587849468,-837.97,0.00027,7]
[403842257,1769587849477,-150.0,0.00027,2]
[403842258,1769587849486,-2000.0,0.000271,2]
[403842259,1769587849496,-1000.0,0.000271,2]
[403842260,1769587849506,-150.0,0.00027123,2]
[403842261,1769587849515,-5901.30840243,0.00027228,2]
[403842262,1769587849525,-713.45380711,0.00027305,76]
[403842263,1769587849535,-615.0,0.00027324,2]
[403842264,1769587849544,-916.0,0.00027324,2]
[403842265,1769587849553,-2443.0,0.00027324,2]
[403842266,1769587849562,-4832.0,0.00027324,2]
[403842267,1769587849571,-6572.0,0.00027324,2]
[403842268,1769587849580,-150.0,0.00027369,2]
[403842269,1769587849589,-905.66353531,0.0002737,30]
[403842270,1769587849599,-300.0,0.00027397,2]
[403842271,1769587849608,-750.0,0.00027397,20]
[403842272,1769587849617,-150.85419022,0.00027397,5]
[403842273,1769587849626,-152.0,0.00027464,12]
[403842274,1769587849635,-250.09009051,0.00027464,5]
[403842275,1769587849644,-500.0,0.0002754,14]
[403842276,1769587849654,-500.0,0.0002754,14]
[403842277,1769587849663,-500.0,0.0002754,14]
[403842278,1769587849672,-150.00289551,0.00027543,33]
[403842279,1769587849681,-713.45380711,0.00027621,80]
[403842280,1769587849691,-275.98387876,0.0002773,14]
[403842281,1769587849700,-1800.0,0.000279,10]
[403842282,1769587849710,-713.45380711,0.00027936,83]
[403842283,1769587849719,-319.95473653,0.00028,7]
[403842284,1769587849728,-500.0,0.00028,120]
[403842285,1769587849738,-713.45380711,0.00028251,87]
[403842286,1769587849747,-523.5,0.00028277,10]
[403842287,1769587849756,-272.52,0.000283,14]
[403842288,1769587849765,-151.0,0.00028335,7]
[403842289,1769587849775,-249.487899,0.00028338,7]
[403842290,1769587849784,-249.487899,0.00028338,7]
[403842291,1769587849793,-249.487899,0.00028338,7]
[403842292,1769587849802,-249.487899,0.00028338,7]
[403842293,1769587849811,-151.0,0.00028338,7]
[403842294,1769587849820,-151.0,0.00028338,7]
[403842295,1769587849829,-151.0,0.00028338,7]
[403842296,1769587849838,-151.0,0.00028338,7]
[403842297,1769587849847,-151.0,0.00028338,7]
[403842298,1769587849857,-151.0,0.00028338,7]
[403842299,1769587849866,-1072.691392,0.00028338,7]
[403842300,1769587849875,-1072.691392,0.00028338,7]
[403842301,1769587849884,-1072.691392,0.00028338,7]
[403842302,1769587849894,-1072.691392,0.00028338,7]
[403842303,1769587849904,-250.377259,0.00028338,7]
[403842304,1769587849914,-250.377259,0.00028338,7]
[403842305,1769587849923,-250.377259,0.00028338,7]
[403842306,1769587849932,-250.377259,0.00028338,7]
[403842307,1769587849942,-151.0,0.00028338,7]
[403842308,1769587849951,-151.0,0.00028338,7]
[403842309,1769587849960,-151.0,0.00028338,7]
[403842310,1769587849971,-761.604489,0.00028338,7]
[403842311,1769587849980,-761.604489,0.00028338,7]
[403842312,1769587849989,-761.604489,0.00028338,7]
[403842313,1769587849999,-151.0,0.00028338,7]
[403842314,1769587850008,-761.604489,0.00028338,7]
[403842315,1769587850017,-151.0,0.00028338,7]
[403842316,1769587850026,-166276.5124646,0.00028338,2]
[403842317,1769587850036,-241.91,0.000284,2]
[403842318,1769587850045,-34025.0,0.00028463,7]
[403842319,1769587850054,-151.0,0.000285,5]
[403842320,1769587850064,-713.45380711,0.00028566,91]
[403842321,1769587850076,-501.0,0.00028783,12]
[403842322,1769587850087,-169.59603033,0.00028836,2]
[403842323,1769587850096,-713.45380711,0.00028882,95]
[403842324,1769587850105,-150.00289551,0.00028916,37]
[403842325,1769587850114,-343.34729902,0.00028985,2]
[403842326,1769587850124,-172.31,0.00029047,2]
[403842327,1769587850133,-837.97,0.000291,7]
[403842328,1769587850142,-500.0,0.00029184,14]
[403842329,1769587850153,-500.0,0.00029184,14]
[403842330,1769587850162,-500.0,0.00029184,14]
[403842331,1769587850171,-713.45380711,0.00029197,98]
[403842332,1769587850180,-241.91,0.000292,2]
[403842333,1769587850189,-500.0,0.00029205,2]
[403842334,1769587850199,-203.53203155,0.00029213,120]
[403842335,1769587850208,-237.81793567,0.00029261,120]
[403842336,1769587850218,-162.02140651,0.00029265,120]
[403842337,1769587850227,-713.45380711,0.00029512,102]
[403842338,1769587850236,-150.0,0.00029589,2]
[403842339,1769587850245,-713.45380711,0.00029827,106]
[403842340,1769587850596,-298.62086134,0.00029997,2]
[403842341,1769587850606,-50000.0,0.0003,2]
[403842342,1769587850615,-151.0,0.0003,2]
[403842343,1769587850624,-500.0,0.0003,120]
[403842344,1769587850634,-7000.0,0.0003,5]
[403842345,1769587850643,-13000.0,0.0003,120]
[403842346,1769587850652,-494.19,0.00030002,2]
[403842347,1769587850661,-400.0,0.00030083,30]
[403842348,1769587850670,-400.0,0.00030083,30]
[403842349,1769587850681,-400.0,0.00030083,30]
[403842350,1769587850690,-378.27383307,0.00030083,30]
[403842351,1769587850699,-214.93084404,0.0003011,30]
[403842352,1769587850708,-220.73616881,0.0003011,30]
[403842353,1769587850717,-500.0,0.00030137,5]
[403842354,1769587850727,-224.8,0.000302,30]
[403842355,1769587850736,-412.85537711,0.0003023,28]
[403842356,1769587850746,-150.00289551,0.00030288,41]
[403842357,1769587850756,-241.91,0.000303,2]
[403842358,1769587850766,-615.0,0.00030324,2]
[403842359,1769587850775,-916.0,0.00030324,2]
[403842360,1769587850785,-2443.0,0.00030324,2]
[403842361,1769587850794,-4832.0,0.00030324,2]
[403842362,1769587850804,-6572.0,0.00030324,2]
[403842363,1769587850813,-5901.30840243,0.00030443,2]
[403842364,1769587850823,-536.9306945,0.00030685,5]
[403842365,1769587850832,-2000.0,0.000308,2]
[403842366,1769587850841,-500.0,0.00030828,14]
[403842367,1769587850851,-500.0,0.00030828,14]
[403842368,1769587850861,-506.51650943,0.00030828,14]
[403842369,1769587850870,-210.0,0.0003084,30]
[403842370,1769587850880,-4268.36258006,0.00030906,2]
[403842371,1769587850889,-437.3230954,0.00031,2]
[403842372,1769587850899,-837.97,0.00031,7]
[403842373,1769587850910,-300.0,0.0003115,10]
[403842374,1769587850919,-300.0,0.0003115,10]
[403842375,1769587850928,-300.0,0.0003115,10]
[403842376,1769587850938,-666.0,0.0003115,10]
[403842377,1769587850947,-166276.5124646,0.00031151,2]
[403842378,1769587850956,-558.6075,0.0003123,28]
[403842379,1769587850965,-200.0,0.000314,120]
[403842380,1769587850974,-501.0,0.00031478,14]
[403842381,1769587850984,-150.00289551,0.00031661,45]
[403842382,1769587850994,-500.0,0.00032,120]
[403842383,1769587851004,-150.0,0.00032055,2]
[403842384,1769587851014,-300.0,0.00032184,10]
[403842385,1769587851024,-300.0,0.00032184,10]
[403842386,1769587851033,-300.0,0.00032184,10]
[403842387,1769587851043,-666.0,0.00032184,10]
[403842388,1769587851052,-500.0,0.00032472,14]
[403842389,1769587851062,-500.0,0.00032472,14]
[403842390,1769587851073,-358.21807339,0.00032849,120]
[403842391,1769587851083,-367.89361468,0.00032849,120]
[403842392,1769587851093,-233.87280673,0.00032849,120]
[403842393,1769587851102,-210.0,0.0003286,30]
[403842394,1769587851111,-300.0,0.00032899,10]
[403842395,1769587851122,-300.0,0.00032899,10]
[403842396,1769587851132,-300.0,0.00032899,10]
[403842397,1769587851141,-703.88062231,0.00032899,10]
[403842398,1769587851154,-4010.75,0.000329,2]
[403842399,1769587851163,-348.08784503,0.00032902,2]
[403842400,1769587851172,-500.0,0.00032999,120]
[403842401,1769587851182,-500.0,0.00032999,120]
[403842402,1769587851191,-379.58066002,0.00032999,2]
[403842403,1769587851199,-500.0,0.00032999,30]
[403842404,1769587851208,-300.0,0.00032999,10]
[403842405,1769587851219,-300.0,0.00032999,10]
[403842406,1769587851228,-300.0,0.00032999,10]
[403842407,1769587851236,-15568.69199318,0.00033,90]
[403842408,1769587851245,-557.685715,0.00033,14]
[403842409,1769587851255,-300.0,0.00033323,10]
[403842410,1769587851264,-300.0,0.00033323,10]
[403842411,1769587851273,-428.89752222,0.00033323,10]
[403842412,1769587851282,-615.0,0.00033324,2]
[403842413,1769587851292,-2443.0,0.00033324,2]
[403842414,1769587851300,-1864.55,0.00033324,2]
[403842415,1769587851309,-6135.709,0.00033324,2]
[403842416,1769587851319,-300.0,0.00033657,10]
[403842417,1769587851328,-300.0,0.00033657,10]
[403842418,1769587851337,-5901.30840243,0.00033658,2]
[403842419,1769587851346,-343.34729902,0.00033761,2]
[403842420,1769587851355,-502.48269816,0.00033939,60]
[403842421,1769587851364,-300.0,0.00033999,10]
[403842422,1769587851374,-300.0,0.00033999,10]
[403842423,1769587851383,-500.0,0.00034,120]
[403842424,1769587851392,-4010.75,0.00034,2]
[403842425,1769587851401,-500.0,0.00034116,14]
[403842426,1769587851410,-500.0,0.00034116,14]
[403842427,1769587851419,-501.0,0.00034174,17]
[403842428,1769587851428,-837.97,0.000342,14]
[403842429,1769587851437,-172.6706953,0.00034407,52]
[403842430,1769587851446,-2000.0,0.000345,2]
[403842431,1769587851456,-150.0,0.00034521,2]
[403842432,1769587851465,-484.94,0.00034817,2]
[403842433,1769587851475,-210.0,0.0003488,30]
[403842434,1769587851484,-300.0,0.00034999,10]
[403842435,1769587851494,-300.0,0.00034999,10]
[403842436,1769587851503,-2524.54306213,0.00035,2]
[403842437,1769587851512,-151.0,0.00035,14]
[403842438,1769587851521,-169.52,0.00035,2]
[403842439,1769587851530,-4010.75,0.00035,2]
[403842440,1769587851539,-4268.36258006,0.00035038,2]
[403842441,1769587851548,-600.0,0.00035616,2]
[403842442,1769587851557,-301.74836865,0.0003576,14]
[403842443,1769587851566,-500.0,0.0003576,14]
[403842444,1769587851575,-172.6706953,0.0003578,56]
[403842445,1769587851584,-227.1,0.000359,30]
[403842446,1769587851593,-150.26821108,0.00035999,2]
[403842447,1769587851602,-500.0,0.00036,120]
[403842448,1769587851611,-1000.0,0.00036,120]
[403842449,1769587851620,-169.59603033,0.0003607,8]
[403842450,1769587851629,-600.0,0.00036164,2]
[403842451,1769587851638,-4010.75,0.000362,2]
[403842452,1769587851647,-615.0,0.00036324,2]
[403842453,1769587851658,-2443.0,0.00036324,2]
[403842454,1769587851667,-3407.04,0.00036656,10]
[403842455,1769587851676,-637.385223,0.00036656,31]
[403842456,1769587851685,-637.385223,0.00036656,31]
[403842457,1769587851694,-637.385223,0.00036656,31]
[403842458,1769587851704,-637.385223,0.00036656,31]
[403842459,1769587851714,-519.705503,0.00036656,7]
[403842460,1769587851723,-519.705503,0.00036656,7]
[403842461,1769587851732,-519.705503,0.00036656,7]
[403842462,1769587851742,-519.705503,0.00036656,7]
[403842463,1769587851752,-11310.66,0.00036664,2]
[403842464,1769587851762,-208.614424,0.00036664,31]
[403842465,1769587851772,-208.614424,0.00036664,31]
[403842466,1769587851782,-208.614424,0.00036664,31]
[403842467,1769587851791,-208.614424,0.00036664,31]
[403842468,1769587851801,-600.0,0.00036712,2]
[403842469,1769587851810,-837.97,0.000368,14]
[403842470,1769587851821,-501.0,0.0003687,19]
[403842471,1769587851831,-5901.30840243,0.00036874,2]
[403842472,1769587851841,-266.7548,0.00036888,7]
[403842473,1769587851850,-210.0,0.0003689,30]
[403842474,1769587851859,-500.0,0.000369,30]
[403842475,1769587851868,-150.0,0.00036986,2]
[403842476,1769587851878,-185.0,0.00037,120]
[403842477,1769587851887,-1027.63307714,0.00037,7]
[403842478,1769587851896,-172.6706953,0.00037153,60]
[403842479,1769587851907,-182.61517366,0.000372,120]
[403842480,1769587851916,-600.0,0.0003726,2]
[403842481,1769587851927,-239.58,0.000373,2]
[403842482,1769587851936,-178.53878551,0.00037404,14]
[403842483,1769587851945,-484.94,0.00037699,2]
[403842484,1769587851954,-484.94,0.00037699,2]
[403842485,1769587851964,-484.94,0.00037699,2]
[403842486,1769587851974,-969.67,0.00037699,2]
[403842487,1769587851983,-900.0,0.000378,14]
[403842488,1769587851993,-900.0,0.000378,14]
[403842489,1769587852002,-900.0,0.000378,14]
[403842490,1769587852011,-900.0,0.000378,14]
[403842491,1769587852021,-785.82,0.000378,14]
[403842492,1769587852030,-500.0,0.00037808,7]
[403842493,1769587852040,-500.0,0.00037808,7]
[403842494,1769587852049,-500.0,0.00037808,7]
[403842495,1769587852058,-500.0,0.00037808,7]
[403842496,1769587852068,-500.0,0.00037808,7]
[403842497,1769587852080,-500.0,0.00037808,7]
[403842498,1769587852091,-500.0,0.00037808,7]
[403842499,1769587852100,-500.0,0.00037808,7]
[403842500,1769587852108,-500.0,0.00037808,7]
[403842501,1769587852118,-500.0,0.00037808,7]
[403842502,1769587852127,-500.0,0.00037808,7]
[403842503,1769587852137,-150.65792961,0.00037808,7]
[403842504,1769587852146,-610.63577554,0.00037808,2]
[403842505,1769587852155,-717.0,0.00038,120]
[403842506,1769587852165,-200.0,0.00038,120]
[403842507,1769587852174,-200.0,0.00038,120]
[403842508,1769587852183,-500.0,0.00038,120]
[403842509,1769587852192,-1533.0,0.00038,60]
[403842510,1769587852204,-2042.0,0.00038,30]
[403842511,1769587852214,-13884.52664213,0.00038,2]
[403842512,1769587852224,-150.0,0.00038,2]
[403842513,1769587852234,-1027.0,0.00038,7]
[403842514,1769587852243,-300.0,0.00038132,10]
[403842515,1769587852255,-675.38550237,0.00038132,30]
[403842516,1769587852264,-263.298,0.00038133,50]
[403842517,1769587852273,-3218.241,0.00038133,50]
[403842518,1769587852283,-300.0,0.00038199,10]
[403842519,1769587852292,-2000.0,0.000382,2]
[403842520,1769587852300,-249.487899,0.00038356,30]
[403842521,1769587852310,-249.487899,0.00038356,30]
[403842522,1769587852319,-249.487899,0.00038356,30]
[403842523,1769587852328,-249.487899,0.00038356,30]
[403842524,1769587852337,-151.0,0.00038356,120]
[403842525,1769587852346,-151.0,0.00038356,120]
[403842526,1769587852356,-151.0,0.00038356,120]
[403842527,1769587852364,-151.0,0.00038356,120]
[403842528,1769587852373,-151.0,0.00038356,120]
[403842529,1769587852384,-151.0,0.00038356,120]
[403842530,1769587852393,-151.0,0.00038356,120]
[403842531,1769587852402,-151.0,0.00038356,120]
[403842532,1769587852411,-151.0,0.00038356,120]
[403842533,1769587852420,-151.0,0.00038356,120]
[403842534,1769587852429,-151.0,0.00038356,120]
[403842535,1769587852438,-206.752197,0.00038356,120]
[403842536,1769587852447,-151.0,0.00038356,120]
[403842537,1769587852456,-151.0,0.00038356,120]
[403842538,1769587852465,-151.0,0.00038356,120]
[403842539,1769587852475,-151.0,0.00038356,120]
[403842540,1769587852485,-151.0,0.00038356,120]
[403842541,1769587852494,-151.0,0.00038356,120]
[403842542,1769587852503,-151.0,0.00038356,120]
[403842543,1769587852512,-151.0,0.00038356,120]
[403842544,1769587852522,-151.0,0.00038356,60]
[403842545,1769587852531,-151.0,0.00038356,60]
[403842546,1769587852539,-151.0,0.00038356,120]
[403842547,1769587852548,-151.0,0.00038356,120]
[403842548,1769587852557,-151.0,0.00038356,60]
[403842549,1769587852566,-151.0,0.00038356,120]
[403842550,1769587852575,-151.0,0.00038356,120]
[403842551,1769587852585,-151.0,0.00038356,120]
[403842552,1769587852595,-152.603269,0.00038356,120]
[403842553,1769587852604,-151.0,0.00038356,120]
[403842554,1769587852614,-152.603269,0.00038356,120]
[403842555,1769587852622,-152.603269,0.00038356,120]
[403842556,1769587852631,-151.0,0.00038356,120]
[403842557,1769587852641,-151.0,0.00038356,120]
[403842558,1769587852650,-152.603269,0.00038356,120]
[403842559,1769587852660,-151.0,0.00038356,120]
[403842560,1769587852669,-151.0,0.00038356,120]
[403842561,1769587852679,-151.0,0.00038356,120]
[403842562,1769587852688,-151.0,0.00038356,120]
[403842563,1769587852698,-151.0,0.00038356,120]
[403842564,1769587852708,-151.0,0.00038356,120]
[403842565,1769587852717,-151.0,0.00038356,120]
[403842566,1769587852725,-151.0,0.00038356,120]
[403842567,1769587852736,-151.0,0.00038356,120]
[403842568,1769587852746,-151.0,0.00038356,120]
[403842569,1769587852756,-151.0,0.00038356,120]
[403842570,1769587852765,-151.0,0.00038356,120]
[403842571,1769587852774,-151.0,0.00038356,120]
[403842572,1769587852783,-151.0,0.00038356,120]
[403842573,1769587852792,-151.0,0.00038356,120]
[403842574,1769587852801,-151.0,0.00038356,120]
[403842575,1769587852810,-151.0,0.00038356,120]
[403842576,1769587852819,-151.0,0.00038356,120]
[403842577,1769587852828,-151.0,0.00038356,120]
[403842578,1769587852837,-151.0,0.00038356,120]
[403842579,1769587852846,-151.0,0.00038356,120]
[403842580,1769587852856,-151.0,0.00038356,120]
[403842581,1769587852865,-151.0,0.00038356,120]
[403842582,1769587852875,-151.0,0.00038356,120]
[403842583,1769587852884,-151.0,0.00038356,120]
[403842584,1769587852894,-151.0,0.00038356,120]
[403842585,1769587852906,-151.0,0.00038356,120]
[403842586,1769587852915,-151.0,0.00038356,120]
[403842587,1769587852925,-151.0,0.00038356,120]
[403842588,1769587852934,-151.0,0.00038356,120]
[403842589,1769587852943,-151.0,0.00038356,120]
[403842590,1769587852953,-151.0,0.00038356,120]
[403842591,1769587852963,-289.760142,0.00038356,120]
[403842592,1769587852972,-160.958342,0.00038356,120]
[403842593,1769587852981,-160.958342,0.00038356,120]
[403842594,1769587852990,-160.958342,0.00038356,120]
[403842595,1769587852999,-160.958342,0.00038356,120]
[403842596,1769587853008,-160.958342,0.00038356,120]
[403842597,1769587853018,-160.958342,0.00038356,120]
[403842598,1769587853027,-160.958342,0.00038356,120]
[403842599,1769587853036,-160.958342,0.00038356,120]
[403842600,1769587853045,-151.0,0.00038356,120]
[403842601,1769587853054,-151.0,0.00038356,120]
[403842602,1769587853064,-151.0,0.00038356,120]
[403842603,1769587853075,-151.0,0.00038356,120]
[403842604,1769587853086,-151.0,0.00038356,120]
[403842605,1769587853095,-151.0,0.00038356,120]
[403842606,1769587853104,-151.0,0.00038356,120]
[403842607,1769587853115,-151.0,0.00038356,120]
[403842608,1769587853124,-151.0,0.00038356,120]
[403842609,1769587853134,-151.0,0.00038356,120]
[403842610,1769587853143,-151.0,0.00038356,120]
[403842611,1769587853153,-151.0,0.00038356,120]
[403842612,1769587853163,-151.0,0.00038356,120]
[403842613,1769587853171,-151.0,0.00038356,120]
[403842614,1769587853181,-151.0,0.00038356,120]
[403842615,1769587853190,-151.0,0.00038356,120]
[403842616,1769587853200,-151.0,0.00038356,120]
[403842617,1769587853209,-151.0,0.00038356,120]
[403842618,1769587853218,-151.0,0.00038356,120]